bitfinex/quotes_ETHUSD_20220305
["timestamp","ask_amount","ask_price","bid_price","bid_amount"]
[1646489960378,0.00291584,2649.3,2649.2,1.66304683]
[1646489961178,0.00291584,2649.3,2649.2,2.73245872]
[1646489961579,0.00291584,2649.3,2649.2,3.73245872]
[1646489962480,0.00291584,2649.3,2649.2,3.04184683]
[1646489962728,0.00291584,2649.3,2649.2,2.73035903]
[1646489962932,0.00291584,2649.3,2649.2,3.73035903]
[1646489963430,0.00291584,2649.3,2649.2,15.26035903]
[1646489964029,1.584e-05,2649.3,2649.2,15.26035903]
[1646489964230,0.0195108,2649.5,2649.4,11.9088]
[1646489964435,0.00583168,2649.6,2649.5,5.3788]
[1646489964632,0.01749504,2649.6,2649.5,17.57184683]
[1646489964830,0.01749504,2649.6,2649.5,19.57184683]
[1646489965030,0.01749504,2649.6,2649.5,20.31312852]
[1646489965230,0.01749504,2649.6,2649.5,9.16616447]
[1646489965432,0.01749504,2649.6,2649.5,2.66304683]
[1646489965836,0.01749504,2649.6,2649.5,1.66304683]
[1646489966233,0.01530629,2649.7,2649.5,1.11604683]
[1646489966481,0.01530629,2649.7,2649.6,0.11604683]
[1646489966482,1.00119668,2649.7,2649.6,0.11604683]
[1646489966878,0.01530629,2649.7,2649.4,0.11604683]
[1646489967081,0.01530629,2649.7,2649.5,0.11604683]
[1646489967082,0.04875749,2649.7,2649.5,0.11604683]
[1646489967280,0.04875749,2649.7,2649.6,0.11604683]
[1646489967686,0.0203267,2649.8,2649.6,0.11604683]
[1646489967687,0.01908419,2649.8,2649.6,0.11604683]
[1646489968084,0.01908419,2649.8,2649.7,0.98399534]
[1646489968285,0.01908419,2649.8,2649.7,1.64704217]
[1646489968684,0.02213576,2649.8,2649.7,2.64704217]
[1646489969386,0.01908419,2649.8,2649.7,2.64704217]
[1646489970229,0.01908419,2649.8,2649.7,3.64704217]
[1646489970632,0.01908419,2649.8,2649.7,4.64704217]
[1646489972335,0.01908419,2649.8,2649.7,3.66304683]
[1646489972535,0.01908419,2649.8,2649.7,2.66304683]
[1646489972736,0.01908419,2649.8,2649.7,2.11604683]
[1646489973737,0.02156921,2649.8,2649.7,2.11604683]
[1646489975574,0.02156921,2649.8,2649.7,2.06604683]
[1646489980429,0.02156921,2649.8,2649.7,1.0]
[1646489981231,0.02156921,2649.8,2649.3,0.0008]
[1646489981687,0.02156921,2649.8,2649.5,1.0]
[1646489981888,0.02156921,2649.8,2649.6,1.16046659]
[1646489982089,0.02156921,2649.8,2649.7,1.0]
[1646489982488,0.02156921,2649.8,2649.6,1.16046659]
[1646489982690,0.02156921,2649.8,2649.4,1.1885]
[1646489983088,0.02156921,2649.8,2649.4,1.5673]
[1646489983388,0.02156921,2649.8,2649.5,0.9258]
[1646489983589,0.02156921,2649.8,2649.7,1.0]
[1646489983788,0.02156921,2649.8,2649.7,1.547]
[1646489984189,0.02156921,2649.8,2649.7,0.547]
[1646489984592,0.02156921,2649.8,2649.6,1.0]
[1646489985250,0.02156921,2649.8,2649.7,1.0]
[1646489985446,0.02441165,2649.8,2649.7,1.0]
[1646489986246,0.99197041,2650.3,2649.7,1.0]
[1646489986247,4.44622375,2650.3,2649.7,1.0]
[1646489986445,0.94622375,2650.3,2649.7,1.0]
[1646489986645,0.91051354,2650.3,2649.7,1.0]
[1646489987347,0.02801343,2650.3,2649.7,1.0]
[1646489987546,0.02801343,2650.3,2649.7,2.0]
[1646489987547,0.01658194,2650.3,2649.7,2.0]
[1646489988552,0.01658194,2650.3,2649.7,1.0]
[1646489988751,0.01658194,2650.3,2649.9,1.0]
[1646489988974,0.01852592,2650.3,2649.9,1.0]
[1646489989174,0.01852592,2650.3,2650.0,0.547]
[1646489989377,0.01852592,2650.3,2650.2,1.0]
[1646489989573,0.01852592,2650.3,2650.0,0.547]
[1646489989574,0.01852592,2650.3,2650.1,0.87994481]
[1646489989774,0.01852592,2650.3,2650.0,1.0]
[1646489989974,0.01658194,2650.3,2650.0,1.0]
[1646489990175,0.01963585,2650.3,2650.0,1.0]
[1646489990775,0.93120144,2650.2,2650.0,1.0]
[1646489991876,0.01658194,2650.2,2650.0,1.0]
[1646489993533,0.01658194,2650.2,2650.0,1.68791029]
[1646489993933,0.01658194,2650.2,2650.0,2.23491029]
[1646489994132,0.01658194,2650.2,2650.1,2.85427369]
[1646489994334,0.01658194,2650.2,2650.1,3.40127369]
[1646489994731,0.01658194,2650.2,2650.1,2.7133634]
[1646489995535,0.01658194,2650.2,2650.1,1.65810515]
[1646489996885,0.01658194,2650.2,2650.1,2.34794612]
[1646489997286,0.01658194,2650.2,2650.1,2.34777157]
[1646489997486,0.01658194,2650.2,2650.1,1.65810515]
[1646489998089,0.01658194,2650.2,2650.1,2.65810515]
[1646489999089,3.384e-05,2650.3,2650.2,5.3788]
[1646489999287,3.384e-05,2650.3,2650.2,19.48862017]
[1646489999487,3.384e-05,2650.3,2650.2,19.22459283]
[1646489999688,0.03682976,2650.7,2650.4,0.3788]
[1646489999887,0.03682976,2650.7,2650.6,0.6884257]
[1646490000160,0.03682976,2650.7,2650.6,2.34653085]
[1646490000447,0.01998296,2650.8,2650.7,2.5]
[1646490000651,0.01998296,2650.8,2650.7,0.547]
[1646490000851,0.01998296,2650.8,2650.7,0.65810515]
[1646490001047,0.02192523,2650.8,2650.7,0.65810515]
[1646490001848,0.487296,2651.1,2650.7,1.56526254]
[1646490001849,0.39833329,2651.1,2650.7,1.56526254]
[1646490002049,0.39833329,2651.1,2650.8,0.11110515]
[1646490002250,0.00305615,2650.9,2650.8,0.11110515]
[1646490002652,0.00305615,2650.9,2650.8,3.61110515]
[1646490002852,0.00305615,2650.9,2650.8,1.11110515]
[1646490003255,0.39833329,2651.1,2650.8,0.11110515]
[1646490003653,0.34833329,2651.1,2650.8,0.11110515]
[1646490003879,0.34833329,2651.1,2650.9,0.547]
[1646490004079,0.34833329,2651.1,2651.0,0.11110515]
[1646490004779,3.329e-05,2651.1,2651.0,0.11110515]
[1646490004984,0.05419526,2651.4,2651.0,16.10542065]
[1646490005183,9.526e-05,2651.4,2651.3,12.59612491]
[1646490005385,9.526e-05,2651.4,2651.3,22.90290515]
[1646490005581,9.526e-05,2651.4,2651.3,20.06059283]
[1646490005885,9.526e-05,2651.4,2651.3,21.40290515]
[1646490006081,9.526e-05,2651.4,2651.3,22.06059283]
[1646490006282,0.02967397,2651.5,2651.3,10.15179283]
[1646490006482,0.02967397,2651.5,2651.4,0.11110515]
[1646490006683,0.02967397,2651.5,2651.4,0.65810515]
[1646490006882,0.02773092,2651.5,2651.4,0.65810515]
[1646490007082,0.03079005,2651.5,2651.4,1.65810515]
[1646490007283,0.01781145,2651.5,2651.4,2.03690515]
[1646490007485,1.509e-05,2651.5,2651.4,18.75426819]
[1646490007733,1.509e-05,2651.5,2651.4,3.72235313]
[1646490007935,1.509e-05,2651.5,2651.4,9.4381359]
[1646490008134,1.509e-05,2651.5,2651.4,5.5593359]
[1646490008333,1.509e-05,2651.5,2651.4,5.25270515]
[1646490008537,1.509e-05,2651.5,2651.4,5.9381359]
[1646490008934,1.509e-05,2651.5,2651.4,4.9381359]
[1646490009134,1.509e-05,2651.5,2651.4,4.25270515]
[1646490009935,1.509e-05,2651.5,2651.4,7.74647571]
[1646490010135,1.509e-05,2651.5,2651.4,4.24647571]
[1646490010737,1.509e-05,2651.5,2651.4,20.27647571]
[1646490010937,1.509e-05,2651.5,2651.4,27.77016339]
[1646490011780,1.509e-05,2651.5,2651.4,12.74016339]
[1646490011978,1.509e-05,2651.5,2651.4,12.08247571]
[1646490012179,1.509e-05,2651.5,2651.4,15.58247571]
[1646490012782,1.509e-05,2651.5,2651.4,27.11247571]
[1646490012984,0.01223499,2651.5,2651.4,16.24016339]
[1646490013185,0.01223499,2651.5,2651.4,15.58247571]
[1646490014186,0.01223499,2651.5,2651.4,27.11247571]
[1646490014687,0.01223499,2651.5,2651.4,27.76715265]
[1646490014888,0.00518834,2651.5,2651.4,27.76715265]
[1646490015142,0.00518834,2651.5,2651.4,12.73715265]
[1646490015335,0.00518834,2651.5,2651.4,15.58247571]
[1646490016235,0.00518834,2651.5,2651.4,12.08247571]
[1646490016440,0.00518834,2651.5,2651.4,2.10487571]
[1646490016837,0.00518834,2651.5,2651.4,1.10487571]
[1646490016838,0.00303297,2651.5,2651.4,1.10487571]
[1646490017037,0.00303297,2651.5,2651.4,0.10487571]
[1646490017238,0.00303297,2651.5,2651.2,2.1639]
[1646490017438,0.00303297,2651.5,2651.2,3.1639]
[1646490017639,0.00303297,2651.5,2651.2,1.0]
[1646490018638,0.00303297,2651.5,2651.2,3.08904128]
[1646490019081,0.00303297,2651.5,2651.2,2.08904128]
[1646490019278,0.00303297,2651.5,2651.4,1.0]
[1646490019478,0.00303297,2651.5,2651.2,2.08904128]
[1646490019880,0.00303297,2651.5,2651.2,1.0]
[1646490020081,0.0022869,2651.7,2651.2,1.0]
[1646490020282,0.00284584,2651.6,2651.2,1.0]
[1646490020482,0.00284584,2651.6,2650.9,1.0]
[1646490021081,0.96524056,2651.4,2650.9,1.0]
[1646490021781,3.0,2651.3,2650.4,0.1885]
[1646490021981,3.0,2651.3,2650.3,2.61954723]
[1646490022180,3.00165502,2651.2,2650.3,2.61954723]
[1646490022381,3.0,2651.2,2650.3,1.61954723]
[1646490022636,3.0,2651.2,2650.3,1.6167]
[1646490022830,0.96562903,2650.8,2650.3,1.6195469]
[1646490023030,0.96562903,2650.8,2650.3,0.0036469]
[1646490023231,4.00165502,2651.5,2650.3,0.0036469]
[1646490023431,0.00165502,2651.1,2650.3,0.0036469]
[1646490023633,3.0,2651.2,2650.3,0.0008]
[1646490023833,0.00165502,2651.1,2650.3,0.0008]
[1646490024138,2.95165502,2651.2,2650.3,0.0008]
[1646490024333,2.95165502,2651.0,2650.3,0.0008]
[1646490024734,2.95165502,2650.7,2650.3,0.0008]
[1646490025334,1.23033359,2650.6,2650.3,0.0008]
[1646490025535,2.95165502,2650.4,2650.3,0.0008]
[1646490025839,3.95165502,2650.4,2650.3,0.0008]
[1646490026035,15.48165502,2650.4,2650.3,0.0008]
[1646490026234,4.5,2650.3,2649.5,0.25]
[1646490026477,0.88777123,2649.6,2649.3,0.0008]
[1646490027084,2.95165502,2649.5,2649.3,0.0008]
[1646490027289,3.95165502,2649.5,2649.3,0.0008]
[1646490027684,15.48165502,2649.5,2649.3,0.003858]
[1646490028087,15.48165502,2649.5,2649.3,0.003058]
[1646490028286,15.48165502,2649.5,2649.3,5.8e-05]
[1646490028486,15.86045502,2649.5,2648.1,0.1887]
[1646490028687,2.95165502,2648.9,2648.1,0.1887]
[1646490028888,2.95165502,2649.1,2648.1,0.1887]
[1646490029292,0.94543462,2649.0,2648.3,0.92467558]
[1646490029889,0.94543462,2649.0,2648.4,0.09801239]
[1646490030334,2.95165502,2648.9,2648.4,0.09801239]
[1646490030935,2.95165502,2648.5,2648.3,0.92467558]
[1646490031138,14.48165502,2648.5,2648.3,0.92467558]
[1646490031337,14.43165502,2648.4,2647.9,0.00148796]
[1646490031538,1.0,2648.5,2647.9,0.00148796]
[1646490031737,3.90165502,2648.7,2648.0,1.0]
[1646490031939,3.90165502,2648.7,2648.1,0.08973807]
[1646490031940,1.0,2648.7,2648.1,0.08973807]
[1646490032335,3.90165502,2648.9,2648.2,1.13387684]
[1646490032742,1.0,2648.9,2648.2,1.13387684]
[1646490032943,0.01643577,2649.2,2648.3,3.59834498]
[1646490033141,0.01643577,2649.2,2648.3,0.64534498]
[1646490033342,3.90165502,2649.5,2649.4,0.18356423]
[1646490033977,2.90165502,2649.5,2649.4,0.18356423]
[1646490034781,2.90165502,2649.9,2649.4,0.18356423]
[1646490035184,0.95257559,2649.9,2649.4,0.18356423]
[1646490035783,3.85423061,2649.9,2649.4,0.18356423]
[1646490036586,2.90165502,2649.6,2649.4,0.18356423]
[1646490036887,1.0,2649.6,2649.4,0.18356423]
[1646490037292,3.90165502,2649.9,2649.4,0.18356423]
[1646490037488,2.90165502,2650.1,2649.4,0.18356423]
[1646490037739,3.90165502,2649.9,2649.4,0.18356423]
[1646490037936,2.90165502,2649.9,2649.4,0.18356423]
[1646490038137,3.90165502,2649.9,2649.4,0.18356423]
[1646490038938,1.0,2649.9,2649.4,0.18356423]
[1646490039140,2.90165502,2650.4,2649.4,3.68356423]
[1646490039341,2.90165502,2650.4,2649.4,0.18356423]
[1646490039745,0.00296499,2650.6,2649.4,0.18356423]
[1646490039746,2.90165502,2650.2,2649.4,0.18356423]
[1646490039942,2.90165502,2649.9,2649.4,0.18356423]
[1646490040141,2.90165502,2650.1,2649.4,0.18356423]
[1646490040440,2.90165502,2649.9,2649.4,0.18356423]
[1646490040642,2.90165502,2649.7,2649.4,0.18356423]
[1646490040842,14.43165502,2649.5,2649.4,0.18356423]
[1646490041242,15.43165502,2649.5,2649.4,0.18356423]
[1646490041489,1.0,2649.5,2649.4,6.423e-05]
[1646490041687,0.90769931,2649.8,2649.4,6.423e-05]
[1646490041887,1.0,2649.7,2649.4,6.423e-05]
[1646490042187,1.0,2650.1,2649.4,6.423e-05]
[1646490042586,3.90165502,2650.3,2649.4,6.423e-05]
[1646490042788,2.90165502,2650.3,2649.7,0.90827079]
[1646490043187,2.90165502,2650.3,2649.4,6.423e-05]
[1646490043888,3.90165502,2650.3,2649.4,6.423e-05]
[1646490044190,2.90165502,2650.3,2649.4,6.423e-05]
[1646490044389,3.90165502,2650.3,2649.4,1.13075094]
[1646490044590,2.90165502,2650.3,2649.4,1.13075094]
[1646490044789,3.90165502,2650.3,2649.4,1.13075094]
[1646490044993,2.90165502,2650.3,2649.4,1.13075094]
[1646490045256,3.90165502,2650.3,2649.4,1.13075094]
[1646490045453,2.90165502,2650.3,2649.4,1.13075094]
[1646490045652,3.90165502,2650.3,2649.4,1.13075094]
[1646490047855,1.0,2650.7,2649.8,0.88188527]
[1646490048056,0.00285699,2650.6,2649.9,3.5]
[1646490048255,0.00285699,2650.6,2649.8,1.42888527]
[1646490048456,0.00285699,2650.6,2649.9,4.4258]
[1646490048658,0.00285699,2650.6,2650.3,0.09834498]
[1646490048896,0.00163228,2651.3,2650.4,0.87740117]
[1646490049087,0.00163228,2651.3,2650.5,0.09834498]
[1646490049290,0.00163228,2651.3,2650.5,3.5]
[1646490049291,0.00285728,2650.6,2650.5,3.5]
[1646490049487,0.00285728,2650.6,2650.5,0.547]
[1646490049488,0.00205728,2650.6,2650.5,0.547]
[1646490049687,0.00205728,2650.6,2650.5,4.52414498]
[1646490050091,0.01142609,2651.3,2650.5,5.52414498]
[1646490050288,0.0022869,2651.7,2650.5,5.52414498]
[1646490050892,0.0022869,2651.7,2650.5,5.4258]
[1646490051093,0.0022869,2651.7,2651.2,1.13758572]
[1646490052195,0.0022869,2651.7,2651.2,1.2359307]
[1646490052934,0.00194095,2651.6,2651.2,1.2359307]
[1646490053736,0.0022869,2651.7,2651.2,1.13758572]
[1646490053936,0.00194095,2651.5,2651.2,1.13758572]
[1646490054938,0.0022869,2651.7,2651.3,0.3788]
[1646490055239,0.00305689,2651.5,2651.2,1.13758572]
[1646490055835,0.00305689,2651.5,2651.4,0.09834498]
[1646490056236,0.0022869,2651.7,2651.2,1.13758572]
[1646490056481,0.00305689,2651.5,2650.9,0.547]
[1646490057286,0.0022869,2651.7,2651.2,0.93635847]
[1646490057481,0.0022869,2651.7,2651.4,0.09834498]
[1646490058285,0.0022869,2651.7,2651.3,3.8788]
[1646490058486,0.0022869,2651.7,2651.6,0.09834498]
[1646490058985,0.0022869,2651.7,2651.4,0.64534498]
[1646490059786,0.0022869,2651.7,2651.4,0.09834498]
[1646490060832,0.0022869,2651.7,2651.5,0.09834498]
[1646490061234,0.00534045,2651.7,2651.5,0.09834498]
[1646490061432,0.00534045,2651.7,2651.6,1.60080769]
[1646490061631,0.00534045,2651.7,2651.6,5.64780769]
[1646490062231,0.0022869,2651.7,2651.6,5.64780769]
[1646490062632,0.0022869,2651.7,2651.6,6.64780769]
[1646490063734,0.0022869,2651.7,2651.6,3.14780769]
[1646490063986,0.0022869,2651.7,2651.6,2.76900769]
[1646490064391,0.0022869,2651.7,2651.6,6.64780769]
[1646490064590,8.69e-05,2651.7,2651.6,6.64780769]
[1646490064791,0.00286356,2651.8,2651.7,5.3788]
[1646490064991,0.00286356,2651.8,2651.7,12.35279498]
[1646490064992,0.011918,2651.8,2651.7,12.35279498]
[1646490065292,0.011918,2651.8,2651.7,13.35279498]
[1646490065493,6.56e-05,2651.8,2651.7,14.43997995]
[1646490065698,0.0291582,2652.0,2651.9,0.3788]
[1646490065893,0.0291582,2652.0,2651.9,0.9258]
[1646490065894,0.0621418,2652.0,2651.9,0.9258]
[1646490066092,0.0621418,2652.0,2651.9,1.9258]
[1646490066292,0.0621418,2652.0,2651.9,2.02414498]
[1646490066995,0.0621418,2652.0,2651.9,1.02414498]
[1646490067640,0.0621418,2652.0,2651.9,1.96702498]
[1646490067840,0.0621418,2652.0,2651.9,6.46702498]
[1646490068042,0.048637,2653.5,2652.3,14.7368539]
[1646490068246,0.0268643,2653.3,2652.9,11.53]
[1646490068443,0.0268643,2653.3,2652.5,0.11121487]
[1646490068444,0.09820458,2653.3,2653.2,1.47714498]
[1646490068641,0.048637,2653.5,2653.3,3.8788]
[1646490068842,0.048637,2653.5,2653.3,4.4258]
[1646490069243,0.0334761,2653.6,2653.3,4.4258]
[1646490069244,1e-05,2653.6,2653.3,4.4258]
[1646490069452,0.0382163,2653.7,2653.6,0.00079]
[1646490069646,0.0382163,2653.7,2653.6,0.54779]
[1646490069847,0.0382163,2653.7,2653.6,0.00079]
[1646490070847,1.17629113,2653.7,2653.6,0.00079]
[1646490071047,0.0382163,2653.7,2653.6,0.00079]
[1646490071989,0.0382163,2653.7,2653.6,1.77296546]
[1646490072190,0.0382163,2653.7,2653.6,1.87131044]
[1646490072390,0.0189677,2653.8,2653.7,4.5]
[1646490072589,6.77e-05,2653.8,2653.7,5.4258]
[1646490072791,0.05122582,2653.8,2653.7,5.4258]
[1646490073189,0.00010012,2653.9,2653.8,3.8788]
[1646490073391,0.00589492,2654.1,2653.8,5.368]
[1646490073590,0.00589492,2654.1,2654.0,0.09834498]
[1646490074592,0.00589492,2654.1,2654.0,1.04054498]
[1646490074792,0.00589492,2654.1,2654.0,1.58754498]
[1646490075432,9.492e-05,2654.1,2654.0,6.12022413]
[1646490075632,0.0295903,2654.2,2654.1,5.3788]
[1646490075832,0.00390192,2654.5,2654.2,0.3788]
[1646490076036,0.00390192,2654.5,2654.2,1.02414498]
[1646490076932,0.00390192,2654.5,2654.2,0.64534498]
[1646490077340,0.00390192,2654.5,2654.2,0.09834498]
[1646490078542,0.00390192,2654.5,2654.3,6.88399]
[1646490078736,0.00390192,2654.5,2654.4,1.547]
[1646490078982,0.00390192,2654.5,2654.4,1.64534498]
[1646490079383,0.0068819,2654.5,2654.4,1.64534498]
[1646490080186,0.00390192,2654.5,2654.4,1.64534498]
[1646490080585,0.00390192,2654.5,2654.4,0.64534498]
[1646490081385,0.00390192,2654.5,2654.1,0.09834498]
[1646490082836,0.00192744,2654.4,2654.1,0.09834498]
[1646490083236,1.12779926,2654.3,2654.1,0.09834498]
[1646490084136,1.1297267,2654.3,2654.1,0.09834498]
[1646490084938,1.12779926,2654.3,2654.1,0.09834498]
[1646490085136,0.00390192,2654.5,2654.1,0.09834498]
[1646490085337,0.00304367,2654.3,2654.1,0.09834498]
[1646490086244,0.00390192,2654.5,2654.1,0.09834498]
[1646490086484,0.00304367,2654.3,2654.1,0.09834498]
[1646490087386,0.00390192,2654.5,2654.1,0.09834498]
[1646490087788,0.00390192,2654.5,2653.6,0.18899]
[1646490087789,0.00304367,2654.3,2653.6,0.18899]
[1646490087990,1.04173756,2654.0,2653.6,0.09913498]
[1646490088190,1.04173756,2654.0,2653.6,0.00079]
[1646490089090,0.00304383,2653.9,2653.6,0.00079]
[1646490089289,0.00304383,2653.9,2653.8,0.09834498]
[1646490089890,0.00390192,2654.5,2653.8,0.09834498]
[1646490090139,0.00295249,2654.0,2653.6,0.00079]
[1646490090338,0.88860095,2654.0,2653.6,0.00079]
[1646490091138,0.88564846,2654.0,2653.6,0.00079]
[1646490091443,0.00285013,2653.9,2653.6,0.00079]
[1646490091840,0.00285013,2653.9,2653.8,0.09834498]
[1646490092240,0.00553045,2654.5,2653.8,0.09834498]
[1646490092440,0.00553045,2654.5,2653.6,0.54779]
[1646490092441,0.01139873,2654.4,2653.6,0.54779]
[1646490092744,0.01139873,2654.4,2653.9,0.92376921]
[1646490093144,0.01139873,2654.4,2653.8,0.09834498]
[1646490093344,0.01139873,2654.4,2653.7,0.09834498]
[1646490093545,0.00390192,2654.5,2653.7,0.09834498]
[1646490093744,0.00273875,2654.3,2653.7,0.09834498]
[1646490093996,0.00273875,2654.3,2653.6,0.00079]
[1646490094194,0.92283185,2653.9,2653.6,0.00079]
[1646490095294,4.28208355,2654.4,2653.6,0.00079]
[1646490095295,1.00162853,2654.4,2653.6,0.00079]
[1646490095695,0.00162853,2654.4,2653.6,0.00079]
[1646490095995,0.00390192,2654.5,2653.6,0.00079]
[1646490098037,0.00390192,2654.5,2653.6,1.12581479]
[1646490098237,0.91814718,2654.2,2653.6,1.12581479]
[1646490098438,3.82270928,2654.2,2653.6,0.00079]
[1646490098639,0.00162853,2654.1,2653.6,0.00079]
[1646490099139,1.34754581,2654.1,2653.6,0.00079]
[1646490099538,0.92471266,2653.7,2653.6,0.00079]
[1646490100539,0.00290715,2654.0,2653.6,0.00079]
[1646490100740,0.00162853,2654.3,2653.6,0.00079]
[1646490100941,0.00283419,2653.8,2653.6,0.00079]
[1646490101414,0.00160696,2653.8,2653.7,0.09834498]
[1646490101788,0.00160696,2653.8,2653.7,1.26452893]
[1646490101988,0.00390192,2654.5,2653.7,5.31152893]
[1646490102186,0.00390192,2654.5,2653.7,5.21318395]
[1646490102386,0.00390192,2654.5,2654.3,0.09834498]
[1646490103190,0.00390192,2654.5,2654.4,0.96889772]
[1646490103391,0.00582634,2654.5,2654.4,0.96889772]
[1646490103791,0.00582634,2654.5,2654.3,0.09834498]
[1646490103991,0.00582634,2654.5,2653.9,0.64534498]
[1646490104191,0.00390192,2654.5,2653.9,0.09834498]
[1646490104791,0.00694248,2654.5,2654.2,1.1014781]
[1646490105435,1.35799408,2654.4,2654.2,1.1014781]
[1646490105732,1.35799408,2654.3,2654.2,1.1014781]
[1646490105933,1.35799408,2654.4,2654.2,1.1014781]
[1646490106132,1.35799408,2654.4,2654.2,1.19982308]
[1646490106633,0.00694251,2654.5,2654.2,1.19982308]
[1646490106634,0.00390192,2654.5,2654.2,1.19982308]
[1646490106835,1.36186718,2654.5,2654.2,1.1014781]
[1646490107140,1.36104521,2654.4,2654.2,1.1014781]
[1646490107838,1.3580046,2654.4,2654.2,1.1014781]
[1646490108039,1.3580046,2654.3,2653.9,0.09834498]
[1646490108238,0.00304061,2654.4,2654.2,0.09834498]
[1646490108441,1.36124817,2654.4,2654.2,0.09834498]
[1646490108900,0.00304061,2654.4,2654.2,0.09834498]
[1646490109084,0.00390192,2654.5,2654.3,1.00379266]
[1646490109285,0.00304061,2654.4,2654.3,1.00379266]
[1646490109485,0.00304061,2654.4,2654.3,1.10213764]
[1646490109888,0.00304061,2654.4,2654.0,0.09834498]
[1646490110086,0.00304061,2654.4,2654.1,0.17335666]
[1646490110284,1.35819737,2654.4,2654.1,0.17335666]
[1646490110484,0.00390192,2654.5,2654.1,0.17335666]
[1646490110687,0.00304065,2654.3,2654.1,0.17335666]
[1646490110886,0.00224065,2654.3,2654.1,0.17335666]
[1646490111088,0.00224065,2654.3,2654.2,0.17335666]
[1646490111488,1.36210224,2654.5,2654.2,0.17335666]
[1646490111887,1.36210224,2654.5,2654.2,0.27170164]
[1646490112087,1.36210224,2654.5,2654.3,0.17335666]
[1646490113135,1.36210224,2654.5,2654.4,0.17335666]
[1646490113339,1.36210224,2654.5,2653.9,0.09834498]
[1646490113535,1.36210224,2654.5,2654.0,0.17393877]
[1646490114535,2.43267488,2654.5,2654.0,0.17393877]
[1646490114735,1.35820032,2654.4,2654.0,0.17393877]
[1646490115336,1.35820032,2654.3,2654.0,0.17393877]
[1646490115536,1.35820032,2654.2,2654.0,0.17393877]
[1646490115735,0.00293801,2654.4,2654.0,0.17393877]
[1646490116136,1.36721129,2654.4,2654.0,0.17393877]
[1646490116392,0.00390192,2654.5,2654.1,0.17393877]
[1646490116393,1.36427328,2654.3,2654.1,0.17393877]
[1646490116584,0.00390192,2654.5,2654.1,0.17393877]
[1646490116785,0.00290152,2654.3,2654.1,0.17393877]
[1646490117385,1.36425776,2654.4,2654.1,0.17393877]
[1646490117587,0.00390192,2654.5,2654.1,0.17393877]
[1646490117588,1.36425776,2654.3,2654.1,0.17393877]
[1646490117788,1.36425776,2654.2,2654.1,0.17393877]
[1646490118188,0.00290152,2654.3,2654.1,0.17393877]
[1646490118389,1.36715928,2654.3,2654.1,0.17393877]
[1646490118589,0.00390192,2654.5,2654.1,0.17393877]
[1646490118789,1.36930754,2654.5,2654.3,0.09834498]
[1646490119088,1.36930754,2654.5,2654.4,0.17393877]
[1646490119489,2.27579211,2654.5,2654.4,0.17393877]
[1646490119691,2.27579211,2654.5,2654.0,0.09834498]
[1646490119891,1.36540562,2654.4,2654.1,0.17096367]
[1646490120138,1.36540562,2654.4,2654.2,0.17096367]
[1646490120339,1.36540562,2654.4,2654.3,0.17096367]
[1646490120539,1.36540562,2654.4,2654.1,0.17096367]
[1646490120737,1.36540562,2654.3,2654.1,0.17096367]
[1646490120937,1.36540562,2654.2,2654.1,0.17096367]
[1646490121138,1.36930754,2654.5,2654.1,0.17096367]
[1646490121339,1.36824001,2654.4,2654.1,0.17096367]
[1646490122339,2.49454427,2654.4,2654.1,0.17096367]
[1646490122542,2.49737866,2654.4,2654.1,0.17096367]
[1646490122748,2.49737866,2654.4,2653.6,1.18899]
[1646490122749,1.36540562,2654.3,2654.2,0.17096367]
[1646490123444,1.36540562,2654.4,2654.1,0.17096367]
[1646490123644,1.36540562,2654.3,2654.1,0.17096367]
[1646490123895,1.36540562,2654.2,2654.1,0.17096367]
[1646490124286,1.36824804,2654.4,2654.1,0.17096367]
[1646490124487,1.36540562,2654.3,2654.1,0.17096367]
[1646490124688,1.36540562,2654.2,2654.1,0.17096367]
[1646490125088,1.36824804,2654.4,2654.1,0.17096367]
[1646490125291,1.36540562,2654.3,2654.1,0.17096367]
[1646490125489,1.36540562,2654.2,2654.1,0.17096367]
[1646490125689,0.00284242,2654.4,2654.1,0.17096367]
[1646490125890,0.00390192,2654.5,2654.1,0.17096367]
[1646490125891,0.00553045,2654.5,2654.1,0.17096367]
[1646490126090,0.00284246,2654.3,2654.1,0.17096367]
[1646490127091,1.36539403,2654.4,2654.1,0.17096367]
[1646490127290,1.3682353,2654.3,2654.1,0.17096367]
[1646490127493,1.36539403,2654.2,2654.1,0.17096367]
[1646490127742,0.00284127,2654.3,2654.1,0.17096367]
[1646490127945,1.3682353,2654.3,2654.1,0.17096367]
[1646490128144,1.36539403,2654.2,2654.1,0.17096367]
[1646490128341,1.36539403,2654.4,2654.1,0.17096367]
[1646490128545,1.3682353,2654.3,2654.1,0.17096367]
[1646490128743,1.36539403,2654.2,2654.1,0.17096367]
[1646490128943,0.00284127,2654.3,2654.1,0.17096367]
[1646490129442,1.36539403,2654.4,2654.1,0.17096367]
[1646490129642,1.3682353,2654.3,2654.1,0.17096367]
[1646490129843,1.36539403,2654.2,2654.1,0.17096367]
[1646490130445,0.00284127,2654.3,2654.1,0.17096367]
[1646490130643,1.36539403,2654.4,2654.1,0.17096367]
[1646490130945,0.99016779,2654.2,2654.1,0.17096367]
[1646490131386,0.20511565,2654.0,2653.6,0.00079]
[1646490131589,1.36552525,2653.9,2653.6,0.00079]
[1646490131788,1.36552525,2653.9,2653.6,0.17321265]
[1646490131990,1.36552525,2653.9,2653.7,0.17242265]
[1646490132189,1.36552525,2653.9,2653.6,0.00079]
[1646490132691,1.1693964,2653.7,2653.6,0.00079]
[1646490132892,2.53492165,2653.7,2653.6,0.00079]
[1646490134495,1.36552525,2653.7,2653.6,0.00079]
[1646490134799,0.20795707,2654.0,2653.6,0.00079]
[1646490134994,0.20795707,2654.0,2653.7,0.547]
[1646490135235,0.20795707,2654.0,2653.8,0.17250826]
[1646490135437,0.20511565,2654.0,2653.8,0.17250826]
[1646490135636,0.2079572,2654.0,2653.8,0.17250826]
[1646490135838,0.2079572,2654.0,2653.6,0.00079]
[1646490136036,1.36333706,2653.9,2653.6,0.00079]
[1646490137741,1.36333706,2653.9,2653.6,0.17328026]
[1646490137940,1.36333706,2653.9,2653.7,0.17249026]
[1646490138141,1.36333706,2653.9,2653.8,0.17249026]
[1646490138344,1.36333706,2653.9,2653.6,0.00079]
[1646490138541,2.39690447,2653.9,2653.6,0.00079]
[1646490138741,1.36333706,2653.8,2653.6,0.00079]
[1646490139392,1.36333706,2653.8,2653.2,0.16956826]
[1646490140397,4.36333706,2653.8,2653.2,0.16956826]
[1646490140791,5.36333706,2653.8,2653.2,0.16956826]
[1646490140996,1.0,2653.8,2652.7,3.5]
[1646490141192,1.0,2653.8,2653.1,0.97445371]
[1646490141393,1.03356741,2653.9,2653.1,0.97445371]
[1646490141793,0.01136532,2653.8,2653.1,0.97445371]
[1646490142637,1.41236741,2653.9,2652.5,11.36355]
[1646490142845,1.41236741,2653.9,2652.5,7.86355]